[Event "Titled Tuesday Blitz August 22 Early 2023"]
[White "Bluebaum, Matthias"]
[Black "Klukin, Kirill"]
[WhiteFideId "24651516"]
[BlackFideId "24199273"]
[WhiteElo "3017"]
[BlackElo "2826"]
[Result "1/2-1/2"]
[Round "6"]
[TimeControl "180+1"]
[Date "2023.08.22"]
[WhiteClock "0:00:07"]
[BlackClock "0:00:12"]
[Board "14"]

1. d4 {[%clk 0:03:00]}  d5 {[%clk 0:02:56]} 2. c4 {[%clk 0:03:01]}  c6 {[%clk 0:02:57]} 3. Nf3 {[%clk 0:03:01]}  e6 {[%clk 0:02:57]} 4. Nc3 {[%clk 0:03:02]}  dxc4 {[%clk 0:02:56]} 5. e4 {[%clk 0:03:03]}  b5 {[%clk 0:02:56]} 6. Qc2 {[%clk 0:03:03]}  Nf6 {[%clk 0:02:52]} 7. Be2 {[%clk 0:03:04]}  Bb4 {[%clk 0:02:48]} 8. O-O {[%clk 0:03:04]}  h6 {[%clk 0:02:48]} 9. a4 {[%clk 0:02:59]}  Bb7 {[%clk 0:02:36]} 10. e5 {[%clk 0:02:57]}  Nd5 {[%clk 0:02:34]} 11. axb5 {[%clk 0:02:55]}  O-O {[%clk 0:01:43]} 12. bxc6 {[%clk 0:02:49]}  Nxc6 {[%clk 0:01:41]} 13. Rd1 {[%clk 0:02:35]}  Rc8 {[%clk 0:01:40]} 14. h3 {[%clk 0:02:30]}  a5 {[%clk 0:01:38]} 15. Ne4 {[%clk 0:02:30]}  Nce7 {[%clk 0:01:26]} 16. Bd2 {[%clk 0:02:28]}  Qb6 {[%clk 0:01:26]} 17. Bxb4 {[%clk 0:02:16]}  Nxb4 {[%clk 0:01:25]} 18. Qb1 {[%clk 0:02:15]}  Ned5 {[%clk 0:01:18]} 19. Nd6 {[%clk 0:02:13]}  Nf4 {[%clk 0:01:17]} 20. Bf1 {[%clk 0:02:08]}  Bxf3 {[%clk 0:00:58]} 21. gxf3 {[%clk 0:02:07]}  Nbd3 {[%clk 0:00:53]} 22. Nxc4 {[%clk 0:01:37]}  Rxc4 {[%clk 0:00:48]} 23. Bxd3 {[%clk 0:01:38]}  Rxd4 {[%clk 0:00:48]} 24. Bf1 {[%clk 0:01:24]}  Rfd8 {[%clk 0:00:47]} 25. Rxd4 {[%clk 0:01:23]}  Rxd4 {[%clk 0:00:48]} 26. Qc2 {[%clk 0:01:22]}  g5 {[%clk 0:00:45]} 27. Rd1 {[%clk 0:01:20]}  Rxd1 {[%clk 0:00:43]} 28. Qxd1 {[%clk 0:01:21]}  Qxb2 {[%clk 0:00:44]} 29. Qd8+ {[%clk 0:01:21]}  Kg7 {[%clk 0:00:44]} 30. Qf6+ {[%clk 0:01:19]}  Kg8 {[%clk 0:00:44]} 31. Qd8+ {[%clk 0:01:20]}  Kg7 {[%clk 0:00:44]} 32. Qf6+ {[%clk 0:01:15]}  Kg8 {[%clk 0:00:37]} 33. h4 {[%clk 0:01:10]}  Ng6 {[%clk 0:00:28]} 34. Qd8+ {[%clk 0:00:51]}  Kh7 {[%clk 0:00:25]} 35. Bd3 {[%clk 0:00:45]}  gxh4 {[%clk 0:00:22]} 36. Qf6 {[%clk 0:00:37]}  Qb7 {[%clk 0:00:15]} 37. Bxg6+ {[%clk 0:00:21]}  fxg6 {[%clk 0:00:16]} 38. Qxe6 {[%clk 0:00:21]}  a4 {[%clk 0:00:15]} 39. Qd6 {[%clk 0:00:22]}  Kg7 {[%clk 0:00:14]} 40. Qf6+ {[%clk 0:00:16]}  Kh7 {[%clk 0:00:14]} 41. e6 {[%clk 0:00:17]}  Qg7 {[%clk 0:00:12]} 42. Qxh4 {[%clk 0:00:12]}  a3 {[%clk 0:00:11]} 43. e7 {[%clk 0:00:13]}  a2 {[%clk 0:00:10]} 44. e8=Q {[%clk 0:00:13]}  a1=Q+ {[%clk 0:00:11]} 45. Kg2 {[%clk 0:00:14]}  Qaf6 {[%clk 0:00:10]} 46. Qg3 {[%clk 0:00:11]}  Qff7 {[%clk 0:00:09]} 47. Qe4 {[%clk 0:00:11]}  Qf5 {[%clk 0:00:09]} 48. Qe3 {[%clk 0:00:11]}  Qgf7 {[%clk 0:00:09]} 49. Qd4 {[%clk 0:00:10]}  Q5f6 {[%clk 0:00:09]} 50. Qe4 {[%clk 0:00:11]}  Kg7 {[%clk 0:00:10]} 51. Qb4 {[%clk 0:00:10]}  Q6e6 {[%clk 0:00:09]} 52. Qc3+ {[%clk 0:00:10]}  Kh7 {[%clk 0:00:10]} 53. Qd3 {[%clk 0:00:09]}  Qef5 {[%clk 0:00:10]} 54. Qdd6 {[%clk 0:00:09]}  Q7f6 {[%clk 0:00:09]} 55. Qc7+ {[%clk 0:00:09]}  Qg7 {[%clk 0:00:10]} 56. Qb8 {[%clk 0:00:10]}  Qff7 {[%clk 0:00:10]} 57. Qd8 {[%clk 0:00:10]}  Qe7 {[%clk 0:00:10]} 58. Qc8 {[%clk 0:00:10]}  Qef6 {[%clk 0:00:11]} 59. Qgb8 {[%clk 0:00:09]}  Qg5+ {[%clk 0:00:10]} 60. Qg3 {[%clk 0:00:09]}  Qf5 {[%clk 0:00:09]} 61. Qa8 {[%clk 0:00:08]}  Qff6 {[%clk 0:00:09]} 62. Qgb8 {[%clk 0:00:08]}  Qg5+ {[%clk 0:00:09]} 63. Qg3 {[%clk 0:00:09]}  Qxg3+ {[%clk 0:00:09]} 64. fxg3 {[%clk 0:00:10]}  Qb2+ {[%clk 0:00:09]} 65. Kh3 {[%clk 0:00:11]}  Qg7 {[%clk 0:00:10]} 66. f4 {[%clk 0:00:10]}  Qd7+ {[%clk 0:00:10]} 67. Kh2 {[%clk 0:00:10]}  Kg7 {[%clk 0:00:10]} 68. Qa1+ {[%clk 0:00:10]}  Kh7 {[%clk 0:00:10]} 69. Qb1 {[%clk 0:00:10]}  Qd2+ {[%clk 0:00:10]} 70. Kh3 {[%clk 0:00:10]}  Qd7+ {[%clk 0:00:11]} 71. g4 {[%clk 0:00:09]}  h5 {[%clk 0:00:11]} 72. f5 {[%clk 0:00:07]}  hxg4+ {[%clk 0:00:11]} 73. Kxg4 {[%clk 0:00:07]}  Qxf5+ {[%clk 0:00:11]} 74. Qxf5 {[%clk 0:00:07]}  gxf5+ {[%clk 0:00:12]} 75. Kg5 {[%clk 0:00:08]}  Kg7 {[%clk 0:00:12]} 76. Kxf5 {[%clk 0:00:07]} 1/2-1/2


[Site "https://www.chess.com"]

[Event "Titled Tuesday Blitz August 22 Early 2023"]
[White "Bauman_Guy"]
[Black "Tabatabaei, M. Amin"]
[BlackFideId "12521213"]
[WhiteElo "2815"]
[BlackElo "2992"]
[Result "0-1"]
[Round "6"]
[TimeControl "180+1"]
[Date "2023.08.22"]
[WhiteClock "0:00:12"]
[BlackClock "0:00:15"]
[Board "15"]

1. e4 {[%clk 0:03:00]}  c6 {[%clk 0:02:59]} 2. d4 {[%clk 0:03:01]}  d5 {[%clk 0:03:00]} 3. e5 {[%clk 0:03:01]}  Bf5 {[%clk 0:03:00]} 4. h4 {[%clk 0:03:02]}  h5 {[%clk 0:03:00]} 5. Bd3 {[%clk 0:03:02]}  Bxd3 {[%clk 0:03:00]} 6. Qxd3 {[%clk 0:03:03]}  e6 {[%clk 0:03:00]} 7. Nf3 {[%clk 0:03:03]}  Qa5+ {[%clk 0:03:01]} 8. Nbd2 {[%clk 0:03:03]}  Qa6 {[%clk 0:03:00]} 9. c4 {[%clk 0:03:03]}  Nd7 {[%clk 0:03:00]} 10. b3 {[%clk 0:03:03]}  Nh6 {[%clk 0:03:00]} 11. O-O {[%clk 0:02:59]}  Nf5 {[%clk 0:03:00]} 12. a4 {[%clk 0:02:50]}  Bb4 {[%clk 0:02:59]} 13. Ba3 {[%clk 0:02:34]}  Qa5 {[%clk 0:02:51]} 14. Bxb4 {[%clk 0:02:31]}  Qxb4 {[%clk 0:02:52]} 15. a5 {[%clk 0:02:32]}  Qe7 {[%clk 0:02:49]} 16. cxd5 {[%clk 0:02:31]}  cxd5 {[%clk 0:02:47]} 17. g3 {[%clk 0:02:25]}  O-O {[%clk 0:02:46]} 18. Rfc1 {[%clk 0:02:21]}  Rfc8 {[%clk 0:02:45]} 19. Qb5 {[%clk 0:02:20]}  Nf8 {[%clk 0:02:28]} 20. a6 {[%clk 0:02:18]}  bxa6 {[%clk 0:02:25]} 21. Qxa6 {[%clk 0:02:18]}  Rc7 {[%clk 0:02:18]} 22. Rc6 {[%clk 0:01:50]}  Rxc6 {[%clk 0:02:12]} 23. Qxc6 {[%clk 0:01:51]}  Rb8 {[%clk 0:02:13]} 24. Qc5 {[%clk 0:01:35]}  Rb7 {[%clk 0:01:51]} 25. b4 {[%clk 0:01:19]}  f6 {[%clk 0:01:45]} 26. Qxe7 {[%clk 0:01:09]}  Nxe7 {[%clk 0:01:45]} 27. Ra6 {[%clk 0:01:07]}  Rxb4 {[%clk 0:01:34]} 28. Nf1 {[%clk 0:00:58]}  Nf5 {[%clk 0:01:30]} 29. exf6 {[%clk 0:00:47]}  gxf6 {[%clk 0:01:31]} 30. Rxa7 {[%clk 0:00:47]}  Nxd4 {[%clk 0:01:31]} 31. Nxd4 {[%clk 0:00:48]}  Rxd4 {[%clk 0:01:32]} 32. Ne3 {[%clk 0:00:49]}  Re4 {[%clk 0:01:25]} 33. Kf1 {[%clk 0:00:40]}  Ng6 {[%clk 0:01:21]} 34. Nd1 {[%clk 0:00:23]}  Ne5 {[%clk 0:01:15]} 35. Nc3 {[%clk 0:00:23]}  Rc4 {[%clk 0:01:15]} 36. Ne2 {[%clk 0:00:23]}  Nd3 {[%clk 0:01:05]} 37. Re7 {[%clk 0:00:20]}  e5 {[%clk 0:01:03]} 38. Rd7 {[%clk 0:00:20]}  d4 {[%clk 0:01:03]} 39. Ng1 {[%clk 0:00:20]}  Rc1+ {[%clk 0:00:59]} 40. Kg2 {[%clk 0:00:20]}  Rc2 {[%clk 0:00:58]} 41. Nh3 {[%clk 0:00:20]}  Nc5 {[%clk 0:00:47]} 42. Rd5 {[%clk 0:00:18]}  d3 {[%clk 0:00:45]} 43. Kf3 {[%clk 0:00:17]}  Kf7 {[%clk 0:00:39]} 44. Ke3 {[%clk 0:00:17]}  Re2+ {[%clk 0:00:39]} 45. Kf3 {[%clk 0:00:17]}  Rc2 {[%clk 0:00:25]} 46. g4 {[%clk 0:00:17]}  Ke6 {[%clk 0:00:23]} 47. Rd8 {[%clk 0:00:17]}  hxg4+ {[%clk 0:00:22]} 48. Kxg4 {[%clk 0:00:17]}  d2 {[%clk 0:00:19]} 49. h5 {[%clk 0:00:14]}  Nd7 {[%clk 0:00:18]} 50. h6 {[%clk 0:00:11]}  d1=Q+ {[%clk 0:00:17]} 51. f3 {[%clk 0:00:12]}  Rg2+ {[%clk 0:00:16]} 52. Kh4 {[%clk 0:00:12]}  Qxf3 {[%clk 0:00:16]} 53. Rg8 {[%clk 0:00:12]}  Rxg8 {[%clk 0:00:15]} 0-1


[Site "https://www.chess.com"]

[Event "Titled Tuesday Blitz August 22 Early 2023"]
[White "Kovalenko, Igor"]
[Black "Adewumi, Tanitoluwa"]
[WhiteFideId "14117908"]
[BlackFideId "30966396"]
[WhiteElo "2939"]
[BlackElo "2796"]
[Result "0-1"]
[Round "6"]
[TimeControl "180+1"]
[Date "2023.08.22"]
[WhiteClock "0:00:52"]
[BlackClock "0:00:10"]
[Board "19"]

1. c4 {[%clk 0:03:00]}  e5 {[%clk 0:02:58]} 2. Nc3 {[%clk 0:02:59]}  Nc6 {[%clk 0:02:58]} 3. e3 {[%clk 0:02:57]}  g6 {[%clk 0:02:50]} 4. g3 {[%clk 0:02:57]}  d6 {[%clk 0:02:49]} 5. Bg2 {[%clk 0:02:57]}  Bg7 {[%clk 0:02:50]} 6. Rb1 {[%clk 0:02:57]}  Be6 {[%clk 0:02:46]} 7. d3 {[%clk 0:02:56]}  Nf6 {[%clk 0:02:43]} 8. Nd5 {[%clk 0:02:53]}  O-O {[%clk 0:02:41]} 9. Ne2 {[%clk 0:02:52]}  Qd7 {[%clk 0:02:36]} 10. h3 {[%clk 0:02:51]}  Ne8 {[%clk 0:02:31]} 11. b4 {[%clk 0:02:50]}  Nd8 {[%clk 0:02:29]} 12. b5 {[%clk 0:02:48]}  c6 {[%clk 0:02:23]} 13. bxc6 {[%clk 0:02:48]}  bxc6 {[%clk 0:02:24]} 14. Ndc3 {[%clk 0:02:48]}  d5 {[%clk 0:02:15]} 15. cxd5 {[%clk 0:02:45]}  cxd5 {[%clk 0:02:16]} 16. Ba3 {[%clk 0:02:45]}  Nd6 {[%clk 0:02:06]} 17. Nxd5 {[%clk 0:02:44]}  Bxd5 {[%clk 0:01:50]} 18. Bxd5 {[%clk 0:02:44]}  Nb5 {[%clk 0:01:50]} 19. Rxb5 {[%clk 0:02:42]}  Qxb5 {[%clk 0:01:49]} 20. Bxa8 {[%clk 0:02:42]}  Qa5+ {[%clk 0:01:50]} 21. Qd2 {[%clk 0:02:41]}  Qxa3 {[%clk 0:01:50]} 22. O-O {[%clk 0:02:41]}  Ne6 {[%clk 0:01:45]} 23. Bd5 {[%clk 0:02:41]}  Nc5 {[%clk 0:00:49]} 24. Rd1 {[%clk 0:02:39]}  Rd8 {[%clk 0:00:45]} 25. Be4 {[%clk 0:02:37]}  Nxe4 {[%clk 0:00:38]} 26. Qc2 {[%clk 0:02:37]}  Nc5 {[%clk 0:00:34]} 27. d4 {[%clk 0:02:35]}  exd4 {[%clk 0:00:35]} 28. exd4 {[%clk 0:02:35]}  Qa4 {[%clk 0:00:31]} 29. Qc1 {[%clk 0:02:11]}  Ne4 {[%clk 0:00:24]} 30. Rd3 {[%clk 0:02:02]}  h5 {[%clk 0:00:23]} 31. Qf4 {[%clk 0:01:48]}  Nd6 {[%clk 0:00:21]} 32. a3 {[%clk 0:01:45]}  Qc2 {[%clk 0:00:20]} 33. Re3 {[%clk 0:01:45]}  Qf5 {[%clk 0:00:17]} 34. Qf3 {[%clk 0:01:29]}  Qxf3 {[%clk 0:00:16]} 35. Rxf3 {[%clk 0:01:30]}  Nf5 {[%clk 0:00:16]} 36. Nf4 {[%clk 0:01:29]}  Nxd4 {[%clk 0:00:15]} 37. Re3 {[%clk 0:01:27]}  Bh6 {[%clk 0:00:14]} 38. Re7 {[%clk 0:01:26]}  Bxf4 {[%clk 0:00:14]} 39. gxf4 {[%clk 0:01:27]}  a5 {[%clk 0:00:14]} 40. Kg2 {[%clk 0:01:26]}  Nb5 {[%clk 0:00:12]} 41. Re5 {[%clk 0:01:25]}  Nxa3 {[%clk 0:00:12]} 42. Rxa5 {[%clk 0:01:25]}  Nc4 {[%clk 0:00:12]} 43. Rc5 {[%clk 0:01:24]}  Nd6 {[%clk 0:00:13]} 44. Rd5 {[%clk 0:01:24]}  Kf8 {[%clk 0:00:12]} 45. Kf3 {[%clk 0:01:24]}  Ke7 {[%clk 0:00:12]} 46. Re5+ {[%clk 0:01:24]}  Kf6 {[%clk 0:00:13]} 47. Rd5 {[%clk 0:01:25]}  Rd7 {[%clk 0:00:13]} 48. Kg2 {[%clk 0:01:22]}  Ke7 {[%clk 0:00:12]} 49. Re5+ {[%clk 0:01:22]}  Kd8 {[%clk 0:00:12]} 50. Ra5 {[%clk 0:01:21]}  Nf5 {[%clk 0:00:12]} 51. Re5 {[%clk 0:01:21]}  f6 {[%clk 0:00:10]} 52. Re6 {[%clk 0:01:21]}  Rd6 {[%clk 0:00:11]} 53. Re1 {[%clk 0:01:20]}  Kd7 {[%clk 0:00:11]} 54. Ra1 {[%clk 0:01:19]}  Rd4 {[%clk 0:00:11]} 55. Kf3 {[%clk 0:01:19]}  Rd3+ {[%clk 0:00:11]} 56. Kg2 {[%clk 0:01:19]}  Nh4+ {[%clk 0:00:11]} 57. Kh2 {[%clk 0:01:19]}  Rf3 {[%clk 0:00:12]} 58. Ra2 {[%clk 0:01:17]}  Rxf4 {[%clk 0:00:11]} 59. Kg3 {[%clk 0:01:17]}  g5 {[%clk 0:00:12]} 60. Re2 {[%clk 0:01:16]}  Nf5+ {[%clk 0:00:11]} 61. Kh2 {[%clk 0:01:16]}  Nd4 {[%clk 0:00:10]} 62. Ra2 {[%clk 0:01:15]}  Ke6 {[%clk 0:00:11]} 63. Kg2 {[%clk 0:01:16]}  Kf5 {[%clk 0:00:11]} 64. Ra5+ {[%clk 0:01:16]}  Kg6 {[%clk 0:00:12]} 65. Ra6 {[%clk 0:01:17]}  g4 {[%clk 0:00:12]} 66. hxg4 {[%clk 0:01:17]}  hxg4 {[%clk 0:00:13]} 67. Ra8 {[%clk 0:01:15]}  f5 {[%clk 0:00:11]} 68. Rg8+ {[%clk 0:01:15]}  Kf6 {[%clk 0:00:12]} 69. Rd8 {[%clk 0:01:14]}  Ne6 {[%clk 0:00:12]} 70. Ra8 {[%clk 0:01:12]}  Rb4 {[%clk 0:00:12]} 71. Ra6 {[%clk 0:01:07]}  Ke5 {[%clk 0:00:10]} 72. Ra5+ {[%clk 0:01:05]}  Ke4 {[%clk 0:00:10]} 73. Ra3 {[%clk 0:01:04]}  f4 {[%clk 0:00:07]} 74. Ra8 {[%clk 0:01:01]}  Rb2 {[%clk 0:00:07]} 75. Re8 {[%clk 0:01:02]}  Kf5 {[%clk 0:00:07]} 76. Kg1 {[%clk 0:01:02]}  g3 {[%clk 0:00:07]} 77. fxg3 {[%clk 0:01:02]}  fxg3 {[%clk 0:00:08]} 78. Rg8 {[%clk 0:00:55]}  Nf4 {[%clk 0:00:08]} 79. Rxg3 {[%clk 0:00:54]}  Ne2+ {[%clk 0:00:09]} 80. Kf2 {[%clk 0:00:54]}  Nxg3+ {[%clk 0:00:09]} 81. Kxg3 {[%clk 0:00:52]}  Rc2 {[%clk 0:00:10]} 0-1


[Site "https://www.chess.com"]

[Event "Titled Tuesday Blitz August 22 Early 2023"]
[White "Krzyzanowski, Marcin"]
[Black "Sjugirov, Sanan"]
[WhiteFideId "1132199"]
[BlackFideId "4189302"]
[WhiteElo "2785"]
[BlackElo "2918"]
[Result "1-0"]
[Round "6"]
[TimeControl "180+1"]
[Date "2023.08.22"]
[WhiteClock "0:00:05"]
[BlackClock "0:00:00"]
[Board "20"]

1. Nf3 {[%clk 0:03:00]}  d5 {[%clk 0:02:59]} 2. g3 {[%clk 0:03:00]}  c6 {[%clk 0:02:54]} 3. Bg2 {[%clk 0:03:00]}  Bg4 {[%clk 0:02:55]} 4. O-O {[%clk 0:02:59]}  Nd7 {[%clk 0:02:55]} 5. d3 {[%clk 0:02:54]}  Ngf6 {[%clk 0:02:54]} 6. c4 {[%clk 0:02:55]}  e6 {[%clk 0:02:53]} 7. Nc3 {[%clk 0:02:51]}  dxc4 {[%clk 0:02:52]} 8. dxc4 {[%clk 0:02:51]}  Be7 {[%clk 0:02:52]} 9. Be3 {[%clk 0:02:46]}  Qa5 {[%clk 0:02:41]} 10. h3 {[%clk 0:02:36]}  Bh5 {[%clk 0:02:39]} 11. a3 {[%clk 0:02:30]}  Rd8 {[%clk 0:02:26]} 12. b4 {[%clk 0:02:29]}  Qc7 {[%clk 0:02:25]} 13. Qb3 {[%clk 0:02:25]}  O-O {[%clk 0:02:23]} 14. Rad1 {[%clk 0:02:25]}  a5 {[%clk 0:02:20]} 15. Nd4 {[%clk 0:02:15]}  axb4 {[%clk 0:02:17]} 16. axb4 {[%clk 0:02:15]}  Qc8 {[%clk 0:01:51]} 17. c5 {[%clk 0:01:37]}  Nd5 {[%clk 0:01:33]} 18. Nxd5 {[%clk 0:01:24]}  cxd5 {[%clk 0:01:32]} 19. Rc1 {[%clk 0:01:20]}  Ne5 {[%clk 0:01:31]} 20. g4 {[%clk 0:00:57]}  Bg6 {[%clk 0:01:30]} 21. f4 {[%clk 0:00:50]}  Nc6 {[%clk 0:01:20]} 22. Rcd1 {[%clk 0:00:31]}  Rfe8 {[%clk 0:01:05]} 23. Nb5 {[%clk 0:00:28]}  f5 {[%clk 0:00:50]} 24. Kh2 {[%clk 0:00:18]}  h6 {[%clk 0:00:44]} 25. Bf3 {[%clk 0:00:17]}  Kh8 {[%clk 0:00:40]} 26. Nd4 {[%clk 0:00:14]}  Bf6 {[%clk 0:00:37]} 27. Nb5 {[%clk 0:00:12]}  Be7 {[%clk 0:00:28]} 28. Rg1 {[%clk 0:00:12]}  Qb8 {[%clk 0:00:24]} 29. Kh1 {[%clk 0:00:12]}  Bf8 {[%clk 0:00:14]} 30. Rg2 {[%clk 0:00:12]}  d4 {[%clk 0:00:12]} 31. Bc1 {[%clk 0:00:10]}  e5 {[%clk 0:00:09]} 32. gxf5 {[%clk 0:00:07]}  Bxf5 {[%clk 0:00:09]} 33. Bh5 {[%clk 0:00:08]}  Be6 {[%clk 0:00:09]} 34. Qg3 {[%clk 0:00:07]}  Bd5 {[%clk 0:00:08]} 35. Bf3 {[%clk 0:00:05]}  e4 {[%clk 0:00:06]} 36. Bh5 {[%clk 0:00:04]}  Re6 {[%clk 0:00:05]} 37. Nd6 {[%clk 0:00:03]}  Rdxd6 {[%clk 0:00:04]} 38. cxd6 {[%clk 0:00:03]}  Rxd6 {[%clk 0:00:04]} 39. f5 {[%clk 0:00:04]}  Qd8 {[%clk 0:00:04]} 40. Bf4 {[%clk 0:00:03]}  Rf6 {[%clk 0:00:02]} 41. Rdg1 {[%clk 0:00:03]}  d3 {[%clk 0:00:02]} 42. exd3 {[%clk 0:00:03]}  exd3 {[%clk 0:00:02]} 43. Bf3 {[%clk 0:00:04]}  Bxf3 {[%clk 0:00:02]} 44. Qxf3 {[%clk 0:00:05]}  Nd4 {[%clk 0:00:03]} 45. Qe4 {[%clk 0:00:05]}  Nxf5 {[%clk 0:00:03]} 46. Be5 {[%clk 0:00:05]}  Rf7 {[%clk 0:00:03]} 47. Rd2 {[%clk 0:00:05]}  Qe8 {[%clk 0:00:02]} 48. Rxd3 {[%clk 0:00:03]}  Qb5 {[%clk 0:00:02]} 49. Rd5 {[%clk 0:00:03]}  Qc6 {[%clk 0:00:02]} 50. b5 {[%clk 0:00:03]}  Qe6 {[%clk 0:00:02]} 51. Qd3 {[%clk 0:00:03]}  Qe7 {[%clk 0:00:02]} 52. Ba1 {[%clk 0:00:03]}  Qh4 {[%clk 0:00:02]} 53. Rxf5 {[%clk 0:00:03]}  Rxf5 {[%clk 0:00:01]} 54. Qxf5 {[%clk 0:00:04]}  Be7 {[%clk 0:00:01]} 55. Bxg7+ {[%clk 0:00:04]}  Kg8 {[%clk 0:00:00]} 56. Bf6+ {[%clk 0:00:05]} 1-0


[Site "https://www.chess.com"]

[Event "Titled Tuesday Blitz August 22 Early 2023"]
[White "Henriquez Villagra, Cristobal"]
[Black "Kushko, Dmitriy"]
[WhiteFideId "3409350"]
[BlackFideId "14162261"]
[WhiteElo "2918"]
[BlackElo "2776"]
[Result "1-0"]
[Round "6"]
[TimeControl "180+1"]
[Date "2023.08.22"]
[WhiteClock "0:01:46"]
[BlackClock "0:00:01"]
[Board "21"]

1. e4 {[%clk 0:02:59]}  g6 {[%clk 0:02:59]} 2. d4 {[%clk 0:02:58]}  Bg7 {[%clk 0:02:59]} 3. Nf3 {[%clk 0:02:58]}  d6 {[%clk 0:02:59]} 4. c4 {[%clk 0:02:56]}  e5 {[%clk 0:02:56]} 5. Nc3 {[%clk 0:02:46]}  Bg4 {[%clk 0:02:56]} 6. d5 {[%clk 0:02:47]}  a5 {[%clk 0:02:55]} 7. Bd3 {[%clk 0:02:43]}  Na6 {[%clk 0:02:54]} 8. h3 {[%clk 0:02:43]}  Bxf3 {[%clk 0:02:49]} 9. Qxf3 {[%clk 0:02:44]}  h5 {[%clk 0:02:49]} 10. b3 {[%clk 0:02:28]}  Bh6 {[%clk 0:02:46]} 11. Bb2 {[%clk 0:02:28]}  Nf6 {[%clk 0:02:23]} 12. Na4 {[%clk 0:02:19]}  Nd7 {[%clk 0:02:13]} 13. a3 {[%clk 0:02:20]}  O-O {[%clk 0:01:51]} 14. Bc2 {[%clk 0:02:15]}  c6 {[%clk 0:01:32]} 15. dxc6 {[%clk 0:02:11]}  bxc6 {[%clk 0:01:32]} 16. Rd1 {[%clk 0:02:11]}  Qe7 {[%clk 0:00:47]} 17. Qd3 {[%clk 0:02:10]}  Ndc5 {[%clk 0:00:33]} 18. Qxd6 {[%clk 0:02:04]}  Qxd6 {[%clk 0:00:31]} 19. Rxd6 {[%clk 0:02:05]}  Nxa4 {[%clk 0:00:30]} 20. bxa4 {[%clk 0:02:06]}  Rfd8 {[%clk 0:00:21]} 21. Bxe5 {[%clk 0:01:56]}  Bf8 {[%clk 0:00:19]} 22. Rxd8 {[%clk 0:01:55]}  Rxd8 {[%clk 0:00:19]} 23. Ke2 {[%clk 0:01:52]}  Bxa3 {[%clk 0:00:18]} 24. Rd1 {[%clk 0:01:52]}  Re8 {[%clk 0:00:17]} 25. f4 {[%clk 0:01:50]}  Bc5 {[%clk 0:00:11]} 26. Kf3 {[%clk 0:01:49]}  Nb4 {[%clk 0:00:10]} 27. Bb1 {[%clk 0:01:49]}  Be7 {[%clk 0:00:04]} 28. g4 {[%clk 0:01:48]}  hxg4+ {[%clk 0:00:04]} 29. hxg4 {[%clk 0:01:49]}  f6 {[%clk 0:00:04]} 30. Bc3 {[%clk 0:01:45]}  Kf7 {[%clk 0:00:03]} 31. e5 {[%clk 0:01:45]}  Ke6 {[%clk 0:00:02]} 32. exf6 {[%clk 0:01:45]}  Bxf6 {[%clk 0:00:01]} 33. Re1+ {[%clk 0:01:46]} 1-0


[Site "https://www.chess.com"]